[Event "*** SCC Grand Prix: Titled Tuesday Blitz"]
[Site "Chess.com"]
[Date "2020.10.06"]
[Round "9"]
[White "catzapto"]
[Black "davigator"]
[Result "0-1"]
[WhiteElo "2159"]
[BlackElo "2353"]
[TimeControl "180+1"]
[EndTime "11:45:04 PDT"]
[Termination "davigator won by checkmate"]

1. e4 {[%clk 0:03:00.9]} 1... c5 {[%clk 0:02:59.1]} 2. Nf3 {[%clk 0:03:00.7]}
2... Nc6 {[%clk 0:02:57.8]} 3. c3 {[%clk 0:03:00.5]} 3... Nf6 {[%clk 0:02:56.7]}
4. e5 {[%clk 0:03:00.4]} 4... Nd5 {[%clk 0:02:57.2]} 5. d4 {[%clk 0:03:01.3]}
5... cxd4 {[%clk 0:02:57.5]} 6. cxd4 {[%clk 0:03:02.2]} 6... d6 {[%clk
0:02:57.2]} 7. Nc3 {[%clk 0:03:01.6]} 7... Nxc3 {[%clk 0:02:54.2]} 8. bxc3
{[%clk 0:03:01.7]} 8... d5 {[%clk 0:02:54.9]} 9. Bd3 {[%clk 0:02:59.9]} 9... Bg4
{[%clk 0:02:50.3]} 10. h3 {[%clk 0:02:59.6]} 10... Bh5 {[%clk 0:02:49.8]} 11.
O-O {[%clk 0:02:59.1]} 11... e6 {[%clk 0:02:48.1]} 12. Rb1 {[%clk 0:02:43.9]}
12... Qd7 {[%clk 0:02:46.4]} 13. Qb3 {[%clk 0:02:31.5]} 13... Bxf3 {[%clk
0:02:44.2]} 14. gxf3 {[%clk 0:02:30.2]} 14... Rb8 {[%clk 0:02:43.6]} 15. Bb5
{[%clk 0:02:27]} 15... Be7 {[%clk 0:02:39.1]} 16. Bxc6 {[%clk 0:02:27.3]} 16...
Qxc6 {[%clk 0:02:38.4]} 17. Qb5 {[%clk 0:02:28]} 17... Qxb5 {[%clk 0:02:31.1]}
18. Rxb5 {[%clk 0:02:28.9]} 18... b6 {[%clk 0:02:31]} 19. a4 {[%clk 0:02:26.5]}
19... Rc8 {[%clk 0:02:30.9]} 20. Bd2 {[%clk 0:02:25]} 20... Kd7 {[%clk
0:02:30.2]} 21. a5 {[%clk 0:02:21.9]} 21... Rc6 {[%clk 0:02:30]} 22. Rfb1 {[%clk
0:02:19.7]} 22... Rb8 {[%clk 0:02:27.5]} 23. Kf1 {[%clk 0:02:15]} 23... Bd8
{[%clk 0:02:27.3]} 24. Ke2 {[%clk 0:02:13.2]} 24... Rbc8 {[%clk 0:02:26.8]} 25.
axb6 {[%clk 0:02:09.7]} 25... Bxb6 {[%clk 0:02:26.1]} 26. f4 {[%clk 0:02:05.4]}
26... g6 {[%clk 0:02:25.4]} 27. h4 {[%clk 0:02:04.5]} 27... h5 {[%clk
0:02:24.1]} 28. Kd3 {[%clk 0:01:55.9]} 28... Rc4 {[%clk 0:02:23.8]} 29. R1b4
{[%clk 0:01:47.2]} 29... R8c6 {[%clk 0:02:22.1]} 30. Rxc4 {[%clk 0:01:41]} 30...
Rxc4 {[%clk 0:02:20]} 31. Rb4 {[%clk 0:01:39.7]} 31... Rxb4 {[%clk 0:02:14.9]}
32. cxb4 {[%clk 0:01:40.6]} 32... Bd8 {[%clk 0:02:14.3]} 33. b5 {[%clk
0:01:20.8]} 33... Bxh4 {[%clk 0:02:13]} 34. Bb4 {[%clk 0:01:20.1]} 34... Bd8
{[%clk 0:02:12.2]} 35. Bc5 {[%clk 0:01:17.6]} 35... Bb6 {[%clk 0:02:12]} 36. Ke3
{[%clk 0:01:16.8]} 36... Kc7 {[%clk 0:02:09.6]} 37. Kf3 {[%clk 0:01:16.9]} 37...
Kb7 {[%clk 0:02:08.9]} 38. Kg3 {[%clk 0:01:15]} 38... Bd8 {[%clk 0:02:08.8]} 39.
Kh3 {[%clk 0:01:02.6]} 39... a6 {[%clk 0:02:08.8]} 40. bxa6+ {[%clk 0:01:01.9]}
40... Kxa6 {[%clk 0:02:09.7]} 41. Kg3 {[%clk 0:01:02.2]} 41... Kb5 {[%clk
0:02:10.4]} 42. Kf3 {[%clk 0:01:02.5]} 42... Kc4 {[%clk 0:02:11]} 43. Ke3 {[%clk
0:01:02.2]} 43... Ba5 {[%clk 0:02:10.1]} 44. Kf3 {[%clk 0:00:59.1]} 44... Kd3
{[%clk 0:02:10.1]} 45. Kg3 {[%clk 0:00:58.9]} 45... Bc3 {[%clk 0:02:09.5]} 46.
Be7 {[%clk 0:00:54.4]} 46... Bxd4 {[%clk 0:02:09.5]} 47. f3 {[%clk 0:00:53.1]}
47... Ke3 {[%clk 0:02:07.3]} 48. Ba3 {[%clk 0:00:49.5]} 48... Ke2 {[%clk
0:02:07.2]} 49. Bc1 {[%clk 0:00:45.5]} 49... Bf2+ {[%clk 0:02:06.7]} 50. Kg2
{[%clk 0:00:41.3]} 50... Be3 {[%clk 0:02:06.8]} 51. Bb2 {[%clk 0:00:38.5]} 51...
d4 {[%clk 0:02:06.7]} 52. Kg3 {[%clk 0:00:36.9]} 52... d3 {[%clk 0:02:06.8]} 53.
Bc3 {[%clk 0:00:37.2]} 53... d2 {[%clk 0:02:06.9]} 54. f5 {[%clk 0:00:35.5]}
54... d1=Q {[%clk 0:02:03.8]} 55. fxe6 {[%clk 0:00:35.5]} 55... Qg1+ {[%clk
0:02:03.5]} 56. Kh4 {[%clk 0:00:35.7]} 56... fxe6 {[%clk 0:02:01.8]} 57. Bd4
{[%clk 0:00:31.8]} 57... Kxf3 {[%clk 0:02:01.4]} 58. Bxe3 {[%clk 0:00:31.5]}
58... Qg4# {[%clk 0:02:00.8]} 0-1

[Event "*** SCC Grand Prix: Titled Tuesday Blitz"]
[Site "Chess.com"]
[Date "2020.10.06"]
[Round "9"]
[White "K_A_S_T_O_R"]
[Black "DrMamaliga"]
[Result "1-0"]
[WhiteElo "2717"]
[BlackElo "2362"]
[TimeControl "180+1"]
[EndTime "11:45:07 PDT"]
[Termination "K_A_S_T_O_R won by resignation"]

1. e4 {[%clk 0:03:00.9]} 1... e5 {[%clk 0:02:59.6]} 2. Nf3 {[%clk 0:03:00.6]}
2... Nc6 {[%clk 0:02:58.5]} 3. Bb5 {[%clk 0:03:01]} 3... a6 {[%clk 0:02:57.2]}
4. Ba4 {[%clk 0:03:01.5]} 4... d6 {[%clk 0:02:57.4]} 5. c3 {[%clk 0:03:00]} 5...
f5 {[%clk 0:02:56.8]} 6. exf5 {[%clk 0:02:55.5]} 6... Bxf5 {[%clk 0:02:57.7]} 7.
d4 {[%clk 0:02:55.6]} 7... e4 {[%clk 0:02:57.7]} 8. Nfd2 {[%clk 0:02:55.1]} 8...
Nf6 {[%clk 0:02:47.6]} 9. Nf1 {[%clk 0:02:54.5]} 9... d5 {[%clk 0:02:36.3]} 10.
Bg5 {[%clk 0:02:52.3]} 10... Be7 {[%clk 0:02:33.6]} 11. Ne3 {[%clk 0:02:51.9]}
11... Be6 {[%clk 0:02:33.1]} 12. Bb3 {[%clk 0:02:44.7]} 12... Qd7 {[%clk
0:02:25.3]} 13. Nd2 {[%clk 0:02:43.2]} 13... Ng4 {[%clk 0:02:22.3]} 14. Bxe7
{[%clk 0:02:37.7]} 14... Nxe3 {[%clk 0:02:20.3]} 15. fxe3 {[%clk 0:02:29.7]}
15... Nxe7 {[%clk 0:02:10.4]} 16. Qh5+ {[%clk 0:02:23.6]} 16... Bf7 {[%clk
0:02:06.1]} 17. Qe5 {[%clk 0:02:22.4]} 17... O-O {[%clk 0:02:02.2]} 18. O-O
{[%clk 0:02:21]} 18... c6 {[%clk 0:02:01.5]} 19. Rf2 {[%clk 0:02:15]} 19... Bg6
{[%clk 0:02:01]} 20. Raf1 {[%clk 0:02:13.2]} 20... Rxf2 {[%clk 0:01:53]} 21.
Rxf2 {[%clk 0:02:12.8]} 21... Rf8 {[%clk 0:01:53.5]} 22. Nxe4 {[%clk 0:02:06]}
22... Nf5 {[%clk 0:01:31]} 23. Nc5 {[%clk 0:02:04.6]} 23... Qe8 {[%clk
0:01:17.9]} 24. Qxe8 {[%clk 0:01:43.6]} 24... Rxe8 {[%clk 0:01:18.8]} 25. e4
{[%clk 0:01:43.9]} 25... Ne7 {[%clk 0:00:46.2]} 26. e5 {[%clk 0:01:36.4]} 26...
Rb8 {[%clk 0:00:43.3]} 27. g4 {[%clk 0:01:32.5]} 27... a5 {[%clk 0:00:41.9]} 28.
e6 {[%clk 0:01:26.5]} 28... b6 {[%clk 0:00:32.5]} 29. Nd7 {[%clk 0:01:26]} 29...
Re8 {[%clk 0:00:28.6]} 30. Nxb6 {[%clk 0:01:25.6]} 30... Kh8 {[%clk 0:00:24.5]}
31. Nd7 {[%clk 0:01:24.1]} 31... Ng8 {[%clk 0:00:24.1]} 32. Nc5 {[%clk 0:01:16]}
32... Nf6 {[%clk 0:00:24.1]} 33. Ba4 {[%clk 0:01:15.4]} 33... Nxg4 {[%clk
0:00:22.5]} 34. Rf4 {[%clk 0:01:15.1]} 1-0

[Event "*** SCC Grand Prix: Titled Tuesday Blitz"]
[Site "Chess.com"]
[Date "2020.10.06"]
[Round "9"]
[White "AlexOstrovskiy"]
[Black "Sergienko_Sergey"]
[Result "1-0"]
[WhiteElo "2753"]
[BlackElo "2396"]
[TimeControl "180+1"]
[EndTime "11:45:08 PDT"]
[Termination "AlexOstrovskiy won by resignation"]

1. d4 {[%clk 0:03:00.9]} 1... Nf6 {[%clk 0:02:59.2]} 2. Bf4 {[%clk 0:03:00.6]}
2... e6 {[%clk 0:02:58.3]} 3. e3 {[%clk 0:03:00.7]} 3... b6 {[%clk 0:02:57.6]}
4. Qf3 {[%clk 0:03:00.5]} 4... Nc6 {[%clk 0:02:51.7]} 5. Nc3 {[%clk 0:03:00.4]}
5... Bb7 {[%clk 0:02:49]} 6. O-O-O {[%clk 0:02:58.1]} 6... Be7 {[%clk
0:02:43.3]} 7. g4 {[%clk 0:02:52.9]} 7... Qc8 {[%clk 0:02:29.2]} 8. Bg2 {[%clk
0:02:51.8]} 8... Na5 {[%clk 0:02:18.7]} 9. e4 {[%clk 0:02:48.1]} 9... h6 {[%clk
0:02:05.3]} 10. h4 {[%clk 0:02:47.8]} 10... d5 {[%clk 0:01:46.9]} 11. e5 {[%clk
0:02:40.3]} 11... Ne4 {[%clk 0:01:46.4]} 12. Nxe4 {[%clk 0:02:37.7]} 12... dxe4
{[%clk 0:01:46]} 13. Qe2 {[%clk 0:02:38.6]} 13... Bd5 {[%clk 0:01:28.3]} 14.
Bxe4 {[%clk 0:02:35.3]} 14... Qb7 {[%clk 0:01:27.9]} 15. f3 {[%clk 0:02:32.8]}
15... O-O {[%clk 0:01:25.8]} 16. Nh3 {[%clk 0:02:10]} 16... Rfd8 {[%clk
0:01:14.7]} 17. g5 {[%clk 0:02:07.7]} 17... h5 {[%clk 0:01:13.8]} 18. g6 {[%clk
0:02:08.2]} 18... fxg6 {[%clk 0:01:11]} 19. Rhg1 {[%clk 0:02:07]} 19... Qc6
{[%clk 0:00:57.7]} 20. Rxg6 {[%clk 0:01:57.2]} 20... Bf8 {[%clk 0:00:57.5]} 21.
Rdg1 {[%clk 0:01:47.8]} 21... Qa4 {[%clk 0:00:51.4]} 22. Qg2 {[%clk 0:01:35.5]}
22... Rd7 {[%clk 0:00:45.4]} 23. Bxd5 {[%clk 0:01:35.4]} 23... exd5 {[%clk
0:00:43]} 24. e6 {[%clk 0:01:36.3]} 24... Re7 {[%clk 0:00:34.6]} 25. Be5 {[%clk
0:01:04.8]} 25... Qxa2 {[%clk 0:00:21.5]} 26. Bxg7 {[%clk 0:01:04.9]} 26... Qa1+
{[%clk 0:00:18.2]} 27. Kd2 {[%clk 0:01:05.4]} 27... Nc4+ {[%clk 0:00:18.1]} 28.
Ke2 {[%clk 0:01:04.7]} 1-0

[Event "*** SCC Grand Prix: Titled Tuesday Blitz"]
[Site "Chess.com"]
[Date "2020.10.06"]
[Round "9"]
[White "Borsuk_Konstantin"]
[Black "Kira170"]
[Result "0-1"]
[WhiteElo "2558"]
[BlackElo "2773"]
[TimeControl "180+1"]
[EndTime "11:45:08 PDT"]
[Termination "Kira170 won by resignation"]

1. d4 {[%clk 0:03:00.9]} 1... Nf6 {[%clk 0:02:59.1]} 2. c4 {[%clk 0:03:00.9]}
2... e6 {[%clk 0:02:59.4]} 3. Nc3 {[%clk 0:03:00.9]} 3... d5 {[%clk 0:02:59.9]}
4. cxd5 {[%clk 0:03:00.6]} 4... exd5 {[%clk 0:03:00]} 5. Bg5 {[%clk 0:03:00.4]}
5... c6 {[%clk 0:03:00.1]} 6. e3 {[%clk 0:03:00.7]} 6... Be7 {[%clk 0:03:00.2]}
7. Bd3 {[%clk 0:03:00.6]} 7... Nbd7 {[%clk 0:03:00.8]} 8. Qc2 {[%clk 0:03:00.1]}
8... O-O {[%clk 0:03:00.2]} 9. Nge2 {[%clk 0:02:59.3]} 9... Re8 {[%clk 0:03:00]}
10. Bh4 {[%clk 0:02:55.7]} 10... Nf8 {[%clk 0:03:00.1]} 11. f3 {[%clk
0:02:55.2]} 11... g6 {[%clk 0:03:00.1]} 12. O-O {[%clk 0:02:51.2]} 12... Ne6
{[%clk 0:03:00.1]} 13. Rad1 {[%clk 0:02:47.8]} 13... b5 {[%clk 0:03:00.4]} 14.
Bf2 {[%clk 0:02:38]} 14... Bd7 {[%clk 0:02:59.3]} 15. h3 {[%clk 0:02:33.2]}
15... Rc8 {[%clk 0:02:56.6]} 16. Qd2 {[%clk 0:02:18.2]} 16... b4 {[%clk
0:02:55.6]} 17. Na4 {[%clk 0:02:15]} 17... c5 {[%clk 0:02:55]} 18. Nxc5 {[%clk
0:02:15.2]} 18... Nxc5 {[%clk 0:02:55]} 19. dxc5 {[%clk 0:02:15.1]} 19... Bxc5
{[%clk 0:02:55.9]} 20. Nd4 {[%clk 0:02:09.4]} 20... Qb6 {[%clk 0:02:55.5]} 21.
Rfe1 {[%clk 0:02:05.8]} 21... a5 {[%clk 0:02:55.3]} 22. Nb3 {[%clk 0:02:04.7]}
22... a4 {[%clk 0:01:59.3]} 23. Nxc5 {[%clk 0:02:03.1]} 23... Qxc5 {[%clk
0:02:00.2]} 24. e4 {[%clk 0:01:58.7]} 24... Qa5 {[%clk 0:02:00.3]} 25. e5 {[%clk
0:01:55.2]} 25... Nh5 {[%clk 0:01:59.9]} 26. Bb1 {[%clk 0:01:37.3]} 26... Be6
{[%clk 0:01:57.5]} 27. g4 {[%clk 0:01:24.3]} 27... Ng7 {[%clk 0:01:57.2]} 28.
Bh4 {[%clk 0:01:23.5]} 28... Qb6+ {[%clk 0:01:23.2]} 29. Kg2 {[%clk 0:01:17.4]}
29... Red8 {[%clk 0:01:18.1]} 30. Bxd8 {[%clk 0:01:15]} 30... Rxd8 {[%clk
0:01:19]} 31. Qd4 {[%clk 0:01:10.3]} 31... Qb7 {[%clk 0:01:18.8]} 32. Rc1 {[%clk
0:00:54.8]} 32... h5 {[%clk 0:01:17.3]} 33. Kg3 {[%clk 0:00:43]} 33... Qe7
{[%clk 0:01:14.4]} 34. Red1 {[%clk 0:00:32.5]} 34... hxg4 {[%clk 0:01:08.9]} 35.
hxg4 {[%clk 0:00:32.2]} 35... Qg5 {[%clk 0:01:08.8]} 36. Qf4 {[%clk 0:00:31.2]}
36... Nh5+ {[%clk 0:01:08.4]} 0-1

[Event "*** SCC Grand Prix: Titled Tuesday Blitz"]
[Site "Chess.com"]
[Date "2020.10.06"]
[Round "9"]
[White "pastouche06"]
[Black "SilviusTiberius"]
[Result "1-0"]
[WhiteElo "2495"]
[BlackElo "2629"]
[TimeControl "180+1"]
[EndTime "11:45:08 PDT"]
[Termination "pastouche06 won by resignation"]

1. d4 {[%clk 0:03:00.4]} 1... Nf6 {[%clk 0:02:59.9]} 2. c4 {[%clk 0:02:55.2]}
2... g6 {[%clk 0:03:00]} 3. f3 {[%clk 0:02:55.2]} 3... Bg7 {[%clk 0:03:00]} 4.
e4 {[%clk 0:02:53.3]} 4... d6 {[%clk 0:03:00.5]} 5. Ne2 {[%clk 0:02:51.3]} 5...
O-O {[%clk 0:03:00.9]} 6. Be3 {[%clk 0:02:51.3]} 6... c5 {[%clk 0:03:00.8]} 7.
Qd2 {[%clk 0:02:51.5]} 7... Nc6 {[%clk 0:02:59.2]} 8. d5 {[%clk 0:02:51.8]} 8...
Ne5 {[%clk 0:02:58.4]} 9. Nec3 {[%clk 0:02:51]} 9... a6 {[%clk 0:02:54.5]} 10.
a4 {[%clk 0:02:50.3]} 10... Qa5 {[%clk 0:02:50.8]} 11. Be2 {[%clk 0:02:48.3]}
11... e6 {[%clk 0:02:39.5]} 12. O-O {[%clk 0:02:42.8]} 12... exd5 {[%clk
0:02:39.2]} 13. cxd5 {[%clk 0:02:43.7]} 13... b5 {[%clk 0:02:36.1]} 14. Qc2
{[%clk 0:02:18.7]} 14... b4 {[%clk 0:02:26.1]} 15. Nd1 {[%clk 0:02:17.3]} 15...
c4 {[%clk 0:01:55]} 16. Nd2 {[%clk 0:02:15.7]} 16... b3 {[%clk 0:01:36.9]} 17.
Qc1 {[%clk 0:02:05.8]} 17... Bd7 {[%clk 0:01:28.8]} 18. Nxc4 {[%clk 0:02:01.4]}
18... Nxc4 {[%clk 0:01:27.6]} 19. Qxc4 {[%clk 0:02:02.3]} 19... Rab8 {[%clk
0:01:22.2]} 20. Nc3 {[%clk 0:01:50.1]} 20... Rfc8 {[%clk 0:01:16.5]} 21. Qxa6
{[%clk 0:01:47.1]} 21... Qxa6 {[%clk 0:00:53.3]} 22. Bxa6 {[%clk 0:01:48]} 22...
Rxc3 {[%clk 0:00:53.3]} 23. bxc3 {[%clk 0:01:46.8]} 23... b2 {[%clk 0:00:54.2]}
24. Rab1 {[%clk 0:01:39.5]} 24... Bxa4 {[%clk 0:00:54.2]} 25. Rf2 {[%clk
0:01:30.8]} 25... Nd7 {[%clk 0:00:37.7]} 26. Bd4 {[%clk 0:01:29.6]} 26... Nc5
{[%clk 0:00:31.8]} 27. Bf1 {[%clk 0:01:17]} 27... Bh6 {[%clk 0:00:14.9]} 28.
Rfxb2 {[%clk 0:01:15]} 28... Re8 {[%clk 0:00:05.9]} 29. Rb8 {[%clk 0:01:14.2]}
1-0

[Event "*** SCC Grand Prix: Titled Tuesday Blitz"]
[Site "Chess.com"]
[Date "2020.10.06"]
[Round "9"]
[White "emiliocordova"]
[Black "Ranindu2003"]
[Result "1-0"]
[WhiteElo "2796"]
[BlackElo "2609"]
[TimeControl "180+1"]
[EndTime "11:45:10 PDT"]
[Termination "emiliocordova won by resignation"]

1. d4 {[%clk 0:03:00.9]} 1... Nf6 {[%clk 0:03:00]} 2. Nf3 {[%clk 0:03:01.8]}
2... e6 {[%clk 0:02:59.5]} 3. g3 {[%clk 0:03:01]} 3... d5 {[%clk 0:02:59.5]} 4.
Bg2 {[%clk 0:03:01]} 4... Be7 {[%clk 0:03:00.2]} 5. O-O {[%clk 0:03:01.4]} 5...
O-O {[%clk 0:03:00.8]} 6. c4 {[%clk 0:03:02.1]} 6... dxc4 {[%clk 0:03:01.2]} 7.
Na3 {[%clk 0:03:02]} 7... c5 {[%clk 0:02:56.6]} 8. Nxc4 {[%clk 0:03:01.5]} 8...
Nc6 {[%clk 0:02:48.3]} 9. dxc5 {[%clk 0:02:58.5]} 9... Bxc5 {[%clk 0:02:38.4]}
10. Bg5 {[%clk 0:02:56.2]} 10... h6 {[%clk 0:02:31.1]} 11. Be3 {[%clk
0:02:18.2]} 11... Bxe3 {[%clk 0:02:22.1]} 12. Nxe3 {[%clk 0:02:19.1]} 12... Qe7
{[%clk 0:02:22.7]} 13. Nd4 {[%clk 0:02:14.8]} 13... Nxd4 {[%clk 0:01:51.6]} 14.
Qxd4 {[%clk 0:02:15.7]} 14... e5 {[%clk 0:01:52.3]} 15. Qc3 {[%clk 0:02:01.2]}
15... Rb8 {[%clk 0:01:49.4]} 16. Rfd1 {[%clk 0:01:59.8]} 16... Bd7 {[%clk
0:01:36.7]} 17. Rac1 {[%clk 0:01:53.1]} 17... Rfc8 {[%clk 0:01:33.1]} 18. Qa5
{[%clk 0:01:52.9]} 18... a6 {[%clk 0:00:59.7]} 19. Rxc8+ {[%clk 0:01:44.9]}
19... Bxc8 {[%clk 0:01:00.6]} 20. Qd8+ {[%clk 0:01:37.7]} 20... Qxd8 {[%clk
0:00:52.3]} 21. Rxd8+ {[%clk 0:01:38.6]} 21... Kh7 {[%clk 0:00:53.2]} 22. Nc4
{[%clk 0:01:37.5]} 22... Be6 {[%clk 0:00:24.3]} 23. Rxb8 {[%clk 0:01:35.8]}
23... Bxc4 {[%clk 0:00:24.5]} 24. Bxb7 {[%clk 0:01:33.6]} 24... Bxe2 {[%clk
0:00:23]} 25. Ra8 {[%clk 0:01:33.2]} 25... Bc4 {[%clk 0:00:23.3]} 26. Bxa6
{[%clk 0:01:33.2]} 26... Bxa2 {[%clk 0:00:23.3]} 27. Bd3+ {[%clk 0:01:33.1]}
27... e4 {[%clk 0:00:23.8]} 28. Bxe4+ {[%clk 0:01:33.5]} 28... Nxe4 {[%clk
0:00:24.7]} 29. Rxa2 {[%clk 0:01:33.7]} 29... Kg6 {[%clk 0:00:25.5]} 30. b4
{[%clk 0:01:33]} 30... Nd6 {[%clk 0:00:25.3]} 31. Rd2 {[%clk 0:01:32.2]} 31...
Nb5 {[%clk 0:00:23.6]} 32. Rd5 {[%clk 0:01:32.2]} 32... Nc7 {[%clk 0:00:22.7]}
33. Rc5 {[%clk 0:01:31.4]} 33... Ne6 {[%clk 0:00:23.4]} 34. Rc4 {[%clk 0:01:31]}
34... Kf6 {[%clk 0:00:23.8]} 35. b5 {[%clk 0:01:31.1]} 35... Nd8 {[%clk
0:00:23.8]} 36. b6 {[%clk 0:01:31.4]} 36... Ke6 {[%clk 0:00:24.5]} 37. Rd4
{[%clk 0:01:28.5]} 37... Nb7 {[%clk 0:00:24]} 38. f4 {[%clk 0:01:28.3]} 38...
Nd6 {[%clk 0:00:20.5]} 39. g4 {[%clk 0:01:27.5]} 39... Kd7 {[%clk 0:00:20.7]}
40. b7 {[%clk 0:01:27.4]} 40... Kc7 {[%clk 0:00:21]} 41. Rxd6 {[%clk 0:01:27.5]}
1-0

[Event "*** SCC Grand Prix: Titled Tuesday Blitz"]
[Site "Chess.com"]
[Date "2020.10.06"]
[Round "9"]
[White "Arfan48"]
[Black "zubridis"]
[Result "0-1"]
[WhiteElo "2292"]
[BlackElo "2475"]
[TimeControl "180+1"]
[EndTime "11:45:10 PDT"]
[Termination "zubridis won by resignation"]

1. e4 {[%clk 0:03:00.9]} 1... e6 {[%clk 0:03:00.9]} 2. Nf3 {[%clk 0:02:59.6]}
2... d5 {[%clk 0:03:01.8]} 3. Nc3 {[%clk 0:03:00.1]} 3... Nf6 {[%clk 0:03:01.1]}
4. e5 {[%clk 0:03:00.4]} 4... Nfd7 {[%clk 0:03:01]} 5. d4 {[%clk 0:03:00.9]}
5... c5 {[%clk 0:03:00.6]} 6. dxc5 {[%clk 0:03:01.8]} 6... Nc6 {[%clk
0:03:00.6]} 7. Bf4 {[%clk 0:03:02.5]} 7... Bxc5 {[%clk 0:02:59.4]} 8. Bd3 {[%clk
0:03:03.1]} 8... f6 {[%clk 0:02:57.7]} 9. exf6 {[%clk 0:03:04]} 9... Qxf6 {[%clk
0:02:57.2]} 10. Bg3 {[%clk 0:03:03.4]} 10... h6 {[%clk 0:02:56.2]} 11. Qe2
{[%clk 0:02:57.2]} 11... O-O {[%clk 0:02:53.5]} 12. O-O-O {[%clk 0:02:36.6]}
12... Nd4 {[%clk 0:02:42.5]} 13. Nxd4 {[%clk 0:02:34]} 13... Bxd4 {[%clk
0:02:43.4]} 14. Rhe1 {[%clk 0:01:48.7]} 14... Nc5 {[%clk 0:02:35.7]} 15. Qd2
{[%clk 0:01:42.2]} 15... Kh8 {[%clk 0:02:26.6]} 16. Bd6 {[%clk 0:01:30.8]} 16...
Rd8 {[%clk 0:02:24.3]} 17. Bxc5 {[%clk 0:01:27.2]} 17... Bxc5 {[%clk 0:02:24.2]}
18. f4 {[%clk 0:01:21.8]} 18... Bd7 {[%clk 0:02:21.5]} 19. Kb1 {[%clk
0:01:18.2]} 19... b5 {[%clk 0:02:17.8]} 20. Ne2 {[%clk 0:01:15.4]} 20... b4
{[%clk 0:02:15.8]} 21. Ng1 {[%clk 0:01:10.5]} 21... Bd4 {[%clk 0:02:06.7]} 22.
Nf3 {[%clk 0:01:05]} 22... Bxb2 {[%clk 0:02:05.5]} 23. Ne5 {[%clk 0:01:05.1]}
23... Bc3 {[%clk 0:02:05.2]} 24. Qe3 {[%clk 0:00:59.5]} 24... Be8 {[%clk
0:02:02]} 25. Re2 {[%clk 0:00:56.4]} 25... Qe7 {[%clk 0:02:01.4]} 26. Ng6+
{[%clk 0:00:41.1]} 26... Bxg6 {[%clk 0:02:00.4]} 27. Bxg6 {[%clk 0:00:42]} 27...
Rd6 {[%clk 0:01:55.8]} 28. Bd3 {[%clk 0:00:37.6]} 28... Qc7 {[%clk 0:01:52.7]}
29. Qg3 {[%clk 0:00:33.8]} 29... e5 {[%clk 0:01:40.4]} 30. fxe5 {[%clk
0:00:31.7]} 30... Qa5 {[%clk 0:01:40.3]} 31. Qf4 {[%clk 0:00:24.1]} 31... Qa3
{[%clk 0:01:21.8]} 32. Qc1 {[%clk 0:00:24]} 32... Re6 {[%clk 0:01:20.7]} 33. Bf5
{[%clk 0:00:24.2]} 33... Ra6 {[%clk 0:01:15]} 34. Qxa3 {[%clk 0:00:22.5]} 34...
bxa3 {[%clk 0:01:15.9]} 35. Rxd5 {[%clk 0:00:22]} 35... Rb8+ {[%clk 0:01:15.8]}
36. Kc1 {[%clk 0:00:22.3]} 36... Rab6 {[%clk 0:01:15.6]} 0-1

[Event "*** SCC Grand Prix: Titled Tuesday Blitz"]
[Site "Chess.com"]
[Date "2020.10.06"]
[Round "9"]
[White "Supernotar"]
[Black "ORS1984"]
[Result "1-0"]
[WhiteElo "2809"]
[BlackElo "2530"]
[TimeControl "180+1"]
[EndTime "11:45:12 PDT"]
[Termination "Supernotar won by checkmate"]

1. d4 {[%clk 0:03:00.9]} 1... d5 {[%clk 0:02:59.8]} 2. c4 {[%clk 0:03:01.1]}
2... c6 {[%clk 0:02:59.9]} 3. e3 {[%clk 0:03:00.3]} 3... Nf6 {[%clk 0:02:59.7]}
4. Bd3 {[%clk 0:02:59.9]} 4... e6 {[%clk 0:02:53.6]} 5. Nd2 {[%clk 0:02:59.5]}
5... Nbd7 {[%clk 0:02:51.7]} 6. Ngf3 {[%clk 0:02:59.4]} 6... b6 {[%clk
0:02:48.5]} 7. O-O {[%clk 0:02:59.2]} 7... Bb7 {[%clk 0:02:47.9]} 8. Qe2 {[%clk
0:02:58.8]} 8... Be7 {[%clk 0:02:46.1]} 9. b3 {[%clk 0:02:56.5]} 9... O-O {[%clk
0:02:45.8]} 10. Bb2 {[%clk 0:02:56.6]} 10... h6 {[%clk 0:02:43.6]} 11. e4 {[%clk
0:02:53.9]} 11... dxe4 {[%clk 0:02:43.4]} 12. Nxe4 {[%clk 0:02:53.7]} 12... Nxe4
{[%clk 0:02:43.4]} 13. Qxe4 {[%clk 0:02:53.5]} 13... Nf6 {[%clk 0:02:41.3]} 14.
Qh4 {[%clk 0:02:50]} 14... c5 {[%clk 0:02:35.9]} 15. Rad1 {[%clk 0:02:47.5]}
15... Qe8 {[%clk 0:01:37.6]} 16. Ne5 {[%clk 0:02:41.7]} 16... Ne4 {[%clk
0:01:28.9]} 17. Qg4 {[%clk 0:02:39.1]} 17... f5 {[%clk 0:01:27.5]} 18. Qe2
{[%clk 0:02:36.8]} 18... cxd4 {[%clk 0:01:24.2]} 19. Bxe4 {[%clk 0:02:28.2]}
19... Bxe4 {[%clk 0:01:15]} 20. Bxd4 {[%clk 0:02:22.7]} 20... Rd8 {[%clk
0:01:13]} 21. Bc3 {[%clk 0:02:19.8]} 21... Bc5 {[%clk 0:01:11.8]} 22. Kh1 {[%clk
0:02:17.5]} 22... Rf6 {[%clk 0:00:32.1]} 23. Rxd8 {[%clk 0:02:12.2]} 23... Qxd8
{[%clk 0:00:32.1]} 24. Rd1 {[%clk 0:02:10.4]} 24... Qe8 {[%clk 0:00:31]} 25. f3
{[%clk 0:02:05.8]} 25... Ba8 {[%clk 0:00:30.9]} 26. Rd7 {[%clk 0:02:02.7]} 26...
Rf8 {[%clk 0:00:29.8]} 27. Qd2 {[%clk 0:01:49.7]} 27... Qh5 {[%clk 0:00:29.2]}
28. b4 {[%clk 0:01:26]} 28... Qh4 {[%clk 0:00:04.5]} 29. Ng6 {[%clk 0:01:14.3]}
29... Qf2 {[%clk 0:00:02.6]} 30. Rxg7# {[%clk 0:01:13.3]} 1-0